[Event "Snabb-SM för veteraner, 65+ 2019"]
[Site "Schackcentrum, Vegagatan 20, Gothenburg, Sweden"]
[Date "2019.10.06"]
[Round "11.3"]
[White "Olsson, Tomas"]
[Black "Fransson, Lennart"]
[Result "0-1"]
[TimeControl "15 minutes + 10 seconds per move from move one"]
[WhiteFideId "1702696"]
[BlackFideId "1706756"]
[WhiteElo "1973"]
[BlackElo "1983"]

1. e4 {[%clk 00:15:17]} {[%emt 00:00:02]} c6 {[%clk 00:15:18]} {[%emt
00:00:03]} 2. Nf3 {[%clk 00:15:17]} {[%emt 00:00:10]} d5 {[%clk 00:15:25]}
{[%emt 00:00:03]} 3. exd5 {[%clk 00:15:23]} {[%emt 00:00:04]} cxd5 {[%clk
00:15:32]} {[%emt 00:00:02]} 4. Ne5 {[%clk 00:15:31]} {[%emt 00:00:03]} Nc6
{[%clk 00:15:27]} {[%emt 00:00:16]} 5. Bb5 {[%clk 00:15:07]} {[%emt 00:00:34]}
Bd7 {[%clk 00:15:10]} {[%emt 00:00:26]} 6. Nxd7 {[%clk 00:14:59]} {[%emt
00:00:17]} Qxd7 {[%clk 00:15:18]} {[%emt 00:00:03]} 7. d4 {[%clk 00:15:07]}
{[%emt 00:00:02]} e6 {[%clk 00:15:17]} {[%emt 00:00:10]} 8. c3 {[%clk
00:14:07]} {[%emt 00:01:10]} Bd6 {[%clk 00:15:15]} {[%emt 00:00:11]} 9. Nd2
{[%clk 00:14:11]} {[%emt 00:00:07]} a6 {[%clk 00:14:59]} {[%emt 00:00:27]} 10.
Bd3 {[%clk 00:14:05]} {[%emt 00:00:16]} Nf6 {[%clk 00:14:36]} {[%emt 00:00:32]}
11. O-O {[%clk 00:13:18]} {[%emt 00:00:57]} O-O {[%clk 00:14:02]} {[%emt
00:00:44]} 12. f4 {[%clk 00:13:06]} {[%emt 00:00:22]} Qc7 {[%clk 00:13:44]}
{[%emt 00:00:29]} 13. Qf3 {[%clk 00:12:49]} {[%emt 00:00:27]} b5 {[%clk
00:13:32]} {[%emt 00:00:23]} 14. a3 {[%clk 00:12:48]} {[%emt 00:00:11]} Rab8
{[%clk 00:13:30]} {[%emt 00:00:11]} 15. g4 {[%clk 00:11:29]} {[%emt 00:01:29]}
g6 {[%clk 00:12:03]} {[%emt 00:01:36]} 16. Rf2 {[%clk 00:07:59]} {[%emt
00:03:40]} a5 {[%clk 00:11:32]} {[%emt 00:00:42]} 17. Nf1 {[%clk 00:07:54]}
{[%emt 00:00:15]} b4 {[%clk 00:11:37]} {[%emt 00:00:06]} 18. Ng3 {[%clk
00:07:40]} {[%emt 00:00:23]} bxc3 {[%clk 00:11:37]} {[%emt 00:00:10]} 19. bxc3
{[%clk 00:07:43]} {[%emt 00:00:06]} Ne7 {[%clk 00:11:36]} {[%emt 00:00:12]} 20.
g5 {[%clk 00:07:36]} {[%emt 00:00:17]} Ne8 {[%clk 00:11:24]} {[%emt 00:00:22]}
21. Bc2 {[%clk 00:07:28]} {[%emt 00:00:18]} f6 {[%clk 00:09:49]} {[%emt
00:01:43]} 22. Qg4 {[%clk 00:07:04]} {[%emt 00:00:33]} Ng7 {[%clk 00:09:37]}
{[%emt 00:00:24]} 23. h4 {[%clk 00:06:51]} {[%emt 00:00:23]} Nef5 {[%clk
00:08:47]} {[%emt 00:01:00]} 24. Nxf5 {[%clk 00:06:05]} {[%emt 00:00:55]} gxf5
{[%clk 00:08:23]} {[%emt 00:00:34]} 25. Qg3 {[%clk 00:05:40]} {[%emt 00:00:36]}
e5 {[%clk 00:06:51]} {[%emt 00:01:42]} 26. Qf3 {[%clk 00:02:19]} {[%emt
00:03:30]} e4 {[%clk 00:06:31]} {[%emt 00:00:31]} 27. Qh3 {[%clk 00:01:50]}
{[%emt 00:00:38]} fxg5 {[%clk 00:04:51]} {[%emt 00:01:50]} 28. hxg5 {[%clk
00:01:46]} {[%emt 00:00:14]} Ne6 {[%clk 00:04:49]} {[%emt 00:00:12]} 29. Qh6
{[%clk 00:00:53]} {[%emt 00:01:03]} Qf7 {[%clk 00:04:36]} {[%emt 00:00:22]} 30.
g6 {[%clk 00:00:44]} {[%emt 00:00:19]} Qg7 {[%clk 00:04:26]} {[%emt 00:00:20]}
31. Qh4 {[%clk 00:00:30]} {[%emt 00:00:24]} hxg6 {[%clk 00:04:15]} {[%emt
00:00:21]} 32. Rh2 {[%clk 00:00:38]} {[%emt 00:00:02]} Kf7 {[%clk 00:04:15]}
{[%emt 00:00:09]} 33. Rg2 {[%clk 00:00:29]} {[%emt 00:00:20]} Rh8 {[%clk
00:04:03]} {[%emt 00:00:22]} 34. Qf2 {[%clk 00:00:35]} {[%emt 00:00:03]} Rh3
{[%clk 00:04:04]} {[%emt 00:00:09]} 35. Rg3 {[%clk 00:00:20]} {[%emt 00:00:25]}
Rbh8 {[%clk 00:04:03]} {[%emt 00:00:11]} 36. Rxh3 {[%clk 00:00:23]} {[%emt
00:00:07]} Rxh3 {[%clk 00:04:10]} {[%emt 00:00:01]} 37. Bb3 {[%clk 00:00:24]}
{[%emt 00:00:11]} Qh6 {[%clk 00:04:10]} {[%emt 00:00:10]} 38. Qg2 {[%clk
00:00:28]} {[%emt 00:00:05]} Qh4 {[%clk 00:04:07]} {[%emt 00:00:13]} 0-1

[Event "Snabb-SM för veteraner, 65+ 2019"]
[Site "Schackcentrum, Vegagatan 20, Gothenburg, Sweden"]
[Date "2019.10.06"]
[Round "11.4"]
[White "Franzen, Thomas"]
[Black "Wahlstrom, Lennart"]
[Result "0-1"]
[TimeControl "15 minutes + 10 seconds per move from move one"]
[WhiteFideId "1706039"]
[BlackFideId "1706829"]
[WhiteElo "1860"]
[BlackElo "2109"]

1. d4 {[%clk 00:15:14]} d5 {[%clk 00:15:17]} {[%emt 00:00:03]} 2. Bf4 {[%clk
00:15:18]} {[%emt 00:00:06]} c5 {[%clk 00:15:21]} {[%emt 00:00:06]} 3. dxc5
{[%clk 00:15:02]} {[%emt 00:00:27]} Nc6 {[%clk 00:15:21]} {[%emt 00:00:10]} 4.
e3 {[%clk 00:15:02]} {[%emt 00:00:11]} e5 {[%clk 00:15:20]} {[%emt 00:00:11]} 5.
Bg3 {[%clk 00:15:09]} {[%emt 00:00:03]} Bxc5 {[%clk 00:15:28]} {[%emt
00:00:02]} 6. Nf3 {[%clk 00:14:41]} {[%emt 00:00:38]} e4 {[%clk 00:14:33]}
{[%emt 00:01:05]} 7. Nd4 {[%clk 00:14:46]} {[%emt 00:00:05]} Bxd4 {[%clk
00:14:35]} {[%emt 00:00:08]} 8. exd4 {[%clk 00:14:53]} {[%emt 00:00:03]} Qb6
{[%clk 00:14:41]} {[%emt 00:00:04]} 9. Nc3 {[%clk 00:14:29]} {[%emt 00:00:35]}
Be6 {[%clk 00:11:57]} {[%emt 00:02:54]} 10. Nb5 {[%clk 00:12:36]} {[%emt
00:02:03]} O-O-O {[%clk 00:10:58]} {[%emt 00:01:08]} 11. Bc7 {[%clk 00:12:24]}
{[%emt 00:00:22]} Qa6 {[%clk 00:09:23]} {[%emt 00:01:45]} 12. Nd6+ {[%clk
00:12:31]} {[%emt 00:00:03]} Kxc7 {[%clk 00:09:31]} {[%emt 00:00:02]} 13. Bxa6
{[%clk 00:12:39]} {[%emt 00:00:02]} Rxd6 {[%clk 00:09:39]} {[%emt 00:00:02]} 14.
Be2 {[%clk 00:12:43]} {[%emt 00:00:06]} f5 {[%clk 00:09:37]} {[%emt 00:00:12]}
15. a4 {[%clk 00:12:00]} {[%emt 00:00:54]} Nf6 {[%clk 00:09:42]} {[%emt
00:00:05]} 16. Qd2 {[%clk 00:12:00]} {[%emt 00:00:09]} h6 {[%clk 00:09:13]}
{[%emt 00:00:39]} 17. b4 {[%clk 00:12:05]} {[%emt 00:00:05]} g5 {[%clk
00:09:06]} {[%emt 00:00:17]} 18. b5 {[%clk 00:12:13]} {[%emt 00:00:02]} Ne7
{[%clk 00:09:06]} {[%emt 00:00:10]} 19. O-O {[%clk 00:12:07]} {[%emt 00:00:17]}
f4 {[%clk 00:09:12]} {[%emt 00:00:03]} 20. Rfc1 {[%clk 00:12:13]} {[%emt
00:00:04]} Kb8 {[%clk 00:09:16]} {[%emt 00:00:07]} 21. Qb4 {[%clk 00:11:57]}
{[%emt 00:00:26]} Nf5 {[%clk 00:09:11]} {[%emt 00:00:14]} 22. c4 {[%clk
00:11:08]} {[%emt 00:00:59]} dxc4 {[%clk 00:09:04]} {[%emt 00:00:17]} 23. Bxc4
{[%clk 00:11:17]} Rxd4 {[%clk 00:08:59]} {[%emt 00:00:15]} 24. Qc5 {[%clk
00:11:14]} {[%emt 00:00:13]} Nd7 {[%clk 00:08:25]} {[%emt 00:00:45]} 25. Qxd4
{[%clk 00:07:23]} {[%emt 00:04:02]} Nxd4 {[%clk 00:08:27]} {[%emt 00:00:08]} 26.
Rd1 {[%clk 00:07:32]} {[%emt 00:00:01]} Bxc4 {[%clk 00:06:32]} {[%emt
00:02:04]} 27. Rxd4 {[%clk 00:07:40]} {[%emt 00:00:02]} Be6 {[%clk 00:06:10]}
{[%emt 00:00:33]} 28. Rxe4 {[%clk 00:07:49]} {[%emt 00:00:02]} Nc5 {[%clk
00:05:49]} {[%emt 00:00:31]} 29. Re5 {[%clk 00:07:41]} {[%emt 00:00:17]} b6
{[%clk 00:05:57]} {[%emt 00:00:02]} 30. h3 {[%clk 00:06:23]} {[%emt 00:01:28]}
Rd8 {[%clk 00:05:36]} {[%emt 00:00:31]} 31. a5 {[%clk 00:05:57]} {[%emt
00:00:36]} Bc4 {[%clk 00:05:39]} {[%emt 00:00:07]} 32. axb6 {[%clk 00:05:56]}
{[%emt 00:00:12]} axb6 {[%clk 00:05:47]} {[%emt 00:00:01]} 33. Re7 {[%clk
00:06:00]} {[%emt 00:00:05]} Bxb5 {[%clk 00:05:54]} {[%emt 00:00:04]} 34. Rh7
{[%clk 00:05:46]} {[%emt 00:00:23]} Rd6 {[%clk 00:05:44]} {[%emt 00:00:21]} 35.
Rh8+ {[%clk 00:05:44]} {[%emt 00:00:12]} Kb7 {[%clk 00:05:47]} {[%emt
00:00:07]} 36. Raa8 {[%clk 00:05:40]} {[%emt 00:00:14]} Bd7 {[%clk 00:05:41]}
{[%emt 00:00:16]} 37. Ra1 {[%clk 00:05:26]} {[%emt 00:00:24]} f3 {[%clk
00:05:24]} {[%emt 00:00:27]} 38. gxf3 {[%clk 00:05:13]} {[%emt 00:00:23]} Bxh3
{[%clk 00:05:32]} {[%emt 00:00:03]} 39. Kh2 {[%clk 00:05:14]} {[%emt 00:00:10]}
Bd7 {[%clk 00:05:29]} {[%emt 00:00:12]} 40. Kg3 {[%clk 00:05:22]} {[%emt
00:00:02]} Nd3 {[%clk 00:05:22]} {[%emt 00:00:17]} 41. Rha8 {[%clk 00:05:12]}
{[%emt 00:00:19]} Kc6 {[%clk 00:05:04]} {[%emt 00:00:28]} 42. Rh8 {[%clk
00:05:11]} {[%emt 00:00:12]} Nc5 {[%clk 00:05:05]} {[%emt 00:00:08]} 43. Rc1
{[%clk 00:05:06]} {[%emt 00:00:15]} b5 {[%clk 00:05:08]} {[%emt 00:00:07]} 44.
Rb8 {[%clk 00:05:03]} {[%emt 00:00:13]} Rd4 {[%clk 00:05:06]} {[%emt 00:00:12]}
45. Rh8 {[%clk 00:05:08]} {[%emt 00:00:05]} b4 {[%clk 00:04:37]} {[%emt
00:00:40]} 46. Rxh6+ {[%clk 00:05:15]} {[%emt 00:00:03]} Kb5 {[%clk 00:04:46]}
{[%emt 00:00:01]} 47. Rg6 {[%clk 00:05:18]} {[%emt 00:00:07]} Rd5 {[%clk
00:04:39]} {[%emt 00:00:17]} 48. Rg8 {[%clk 00:05:21]} {[%emt 00:00:07]} Na4
{[%clk 00:03:49]} {[%emt 00:01:00]} 49. Rb8+ {[%clk 00:05:00]} {[%emt
00:00:31]} Nb6 {[%clk 00:03:58]} {[%emt 00:00:02]} 50. f4 {[%clk 00:04:59]}
{[%emt 00:00:11]} Rd3+ {[%clk 00:03:47]} {[%emt 00:00:21]} 51. f3 {[%clk
00:04:46]} {[%emt 00:00:23]} g4 {[%emt 00:00:09]} 52. Rf1 {[%clk 00:04:18]}
{[%emt 00:00:36]} b3 {[%clk 00:03:42]} {[%emt 00:00:18]} 53. Rg8 {[%clk
00:03:32]} {[%emt 00:00:55]} Rxf3+ {[%clk 00:03:02]} {[%emt 00:00:51]} 54. Rxf3
{[%clk 00:03:39]} {[%emt 00:00:03]} gxf3 {[%clk 00:03:10]} {[%emt 00:00:02]} 55.
Kxf3 {[%clk 00:03:48]} {[%emt 00:00:01]} b2 {[%clk 00:03:06]} {[%emt 00:00:14]}
56. Rg1 {[%clk 00:03:27]} {[%emt 00:00:32]} Bf5 {[%clk 00:03:14]} {[%emt
00:00:02]} 57. Ke3 {[%clk 00:03:30]} {[%emt 00:00:06]} Kc5 {[%clk 00:02:59]}
{[%emt 00:00:25]} 58. Kf3 {[%clk 00:03:30]} {[%emt 00:00:10]} Nc4 {[%clk
00:02:58]} {[%emt 00:00:10]} 59. Kg3 {[%clk 00:03:30]} {[%emt 00:00:10]} Nd2
{[%clk 00:03:02]} {[%emt 00:00:06]} 60. Re1 {[%clk 00:03:26]} {[%emt 00:00:14]}
Kc4 {[%clk 00:03:00]} {[%emt 00:00:13]} 61. Rh1 {[%clk 00:03:25]} {[%emt
00:00:10]} Nb3 {[%clk 00:03:08]} {[%emt 00:00:03]} 62. Kh4 {[%clk 00:03:32]}
{[%emt 00:00:04]} Nc1 {[%emt 00:00:02]} 0-1

[Event "Snabb-SM för veteraner, 65+ 2019"]
[Site "Schackcentrum, Vegagatan 20, Gothenburg, Sweden"]
[Date "2019.10.06"]
[Round "11.5"]
[White "Degerfeldt, Sven"]
[Black "Green, Per"]
[Result "1/2-1/2"]
[TimeControl "15 minutes + 10 seconds per move from move one"]
[WhiteFideId "1717430"]
[BlackFideId "1703811"]
[WhiteElo "1822"]
[BlackElo "1923"]

1. d4 {[%clk 00:15:17]} {[%emt 00:00:01]} Nf6 {[%clk 00:15:15]} {[%emt
00:00:06]} 2. Nf3 {[%clk 00:15:25]} {[%emt 00:00:02]} d5 {[%clk 00:14:43]}
{[%emt 00:00:42]} 3. c4 {[%clk 00:15:30]} {[%emt 00:00:05]} e6 {[%clk
00:14:46]} {[%emt 00:00:07]} 4. e3 {[%clk 00:15:38]} {[%emt 00:00:02]} b6
{[%clk 00:13:32]} {[%emt 00:01:25]} 5. cxd5 {[%clk 00:14:27]} {[%emt 00:01:20]}
exd5 {[%clk 00:13:36]} {[%emt 00:00:06]} 6. Bd3 {[%clk 00:14:30]} {[%emt
00:00:07]} Bd6 {[%clk 00:13:13]} {[%emt 00:00:32]} 7. Nc3 {[%clk 00:14:09]}
{[%emt 00:00:31]} a6 {[%clk 00:12:43]} {[%emt 00:00:40]} 8. h3 {[%clk
00:14:08]} {[%emt 00:00:10]} c5 {[%clk 00:11:14]} {[%emt 00:01:40]} 9. O-O
{[%clk 00:13:37]} {[%emt 00:00:42]} O-O {[%clk 00:11:15]} {[%emt 00:00:09]} 10.
b3 {[%clk 00:13:05]} {[%emt 00:00:40]} Nc6 {[%clk 00:11:19]} {[%emt 00:00:07]}
11. Bb2 {[%clk 00:12:13]} {[%emt 00:01:02]} Re8 {[%clk 00:11:19]} {[%emt
00:00:11]} 12. Rc1 {[%clk 00:10:45]} {[%emt 00:01:37]} cxd4 {[%clk 00:09:39]}
{[%emt 00:01:50]} 13. Nxd4 {[%clk 00:10:17]} {[%emt 00:00:38]} Nxd4 {[%clk
00:09:40]} {[%emt 00:00:09]} 14. exd4 {[%clk 00:10:23]} {[%emt 00:00:03]} Bb7
{[%clk 00:09:11]} {[%emt 00:00:40]} 15. Qf3 {[%clk 00:09:31]} {[%emt 00:01:01]}
Ne4 {[%clk 00:08:52]} {[%emt 00:00:29]} 16. Rfe1 {[%clk 00:09:08]} {[%emt
00:00:33]} Bb4 {[%clk 00:07:42]} {[%emt 00:01:21]} 17. Re2 {[%clk 00:07:14]}
{[%emt 00:02:04]} Nxc3 {[%clk 00:03:50]} {[%emt 00:04:03]} 18. Bxc3 {[%clk
00:07:15]} {[%emt 00:00:09]} Rc8 {[%clk 00:02:44]} {[%emt 00:01:16]} 19. Bb2
{[%clk 00:04:30]} {[%emt 00:02:54]} Rxe2 {[%clk 00:01:29]} {[%emt 00:01:25]} 20.
Qxe2 {[%clk 00:04:31]} {[%emt 00:00:09]} b5 {[%clk 00:01:18]} {[%emt 00:00:22]}
21. Rxc8 {[%clk 00:01:24]} {[%emt 00:03:17]} Bxc8 {[%clk 00:01:05]} {[%emt
00:00:24]} 22. Bc1 {[%clk 00:00:51]} {[%emt 00:00:42]} Be6 {[%clk 00:00:39]}
{[%emt 00:00:35]} 23. Bf4 {[%clk 00:00:49]} {[%emt 00:00:13]} Bd6 {[%clk
00:00:37]} {[%emt 00:00:12]} 24. Bxd6 {[%clk 00:00:41]} {[%emt 00:00:18]} Qxd6
{[%clk 00:00:45]} {[%emt 00:00:01]} 25. Qc2 {[%clk 00:00:33]} {[%emt 00:00:18]}
g6 {[%clk 00:00:48]} {[%emt 00:00:08]} 26. Qc5 {[%clk 00:00:32]} {[%emt
00:00:11]} Qb8 {[%clk 00:00:18]} {[%emt 00:00:40]} 27. Bf1 {[%clk 00:00:28]}
{[%emt 00:00:13]} Kg7 {[%clk 00:00:26]} {[%emt 00:00:03]} 28. g3 {[%clk
00:00:35]} {[%emt 00:00:03]} Qa8 {[%clk 00:00:30]} {[%emt 00:00:06]} 29. Qc7
{[%clk 00:00:39]} {[%emt 00:00:07]} Kg8 {[%clk 00:00:30]} {[%emt 00:00:09]} 30.
Kh2 {[%clk 00:00:39]} {[%emt 00:00:09]} Kg7 {[%clk 00:00:38]} {[%emt 00:00:02]}
31. Bd3 {[%clk 00:00:38]} {[%emt 00:00:10]} Kg8 {[%clk 00:00:32]} {[%emt
00:00:17]} 32. f4 {[%clk 00:00:36]} {[%emt 00:00:12]} Qf8 {[%clk 00:00:14]}
{[%emt 00:00:28]} 33. Qc5 {[%clk 00:00:43]} {[%emt 00:00:04]} Qb8 {[%clk
00:00:19]} {[%emt 00:00:05]} 34. Qc1 {[%clk 00:00:42]} {[%emt 00:00:11]} b4
{[%clk 00:00:25]} {[%emt 00:00:04]} 35. Qe3 {[%clk 00:00:47]} {[%emt 00:00:05]}
a5 {[%clk 00:00:34]} {[%emt 00:00:02]} 36. Kg2 {[%clk 00:00:46]} {[%emt
00:00:10]} Qc8 {[%clk 00:00:43]} 37. Bb1 {[%clk 00:00:43]} {[%emt 00:00:13]}
Bxh3+ {[%clk 00:00:51]} {[%emt 00:00:02]} 38. Kf2 {[%clk 00:00:44]} {[%emt
00:00:10]} Bf5 {[%clk 00:00:58]} {[%emt 00:00:03]} 39. Bxf5 {[%clk 00:00:36]}
{[%emt 00:00:18]} Qxf5 {[%clk 00:01:07]} {[%emt 00:00:01]} 40. Kf3 {[%clk
00:00:42]} {[%emt 00:00:03]} Qc2 {[%clk 00:00:56]} {[%emt 00:00:21]} 41. Qe8+
{[%clk 00:00:48]} {[%emt 00:00:04]} Kg7 {[%clk 00:01:03]} {[%emt 00:00:03]} 42.
Qe5+ {[%clk 00:00:54]} {[%emt 00:00:04]} Kg8 {[%clk 00:01:01]} {[%emt
00:00:13]} 43. Qe8+ {[%clk 00:00:50]} {[%emt 00:00:14]} Kg7 {[%clk 00:01:09]}
{[%emt 00:00:02]} 44. Qe5+ {[%clk 00:00:58]} {[%emt 00:00:01]} Kg8 {[%emt
00:00:10]} 1/2-1/2

[Event "Snabb-SM för veteraner, 65+ 2019"]
[Site "Schackcentrum, Vegagatan 20, Gothenburg, Sweden"]
[Date "2019.10.06"]
[Round "11.6"]
[White "Kvarby, Anders"]
[Black "Olesen, Christer"]
[Result "1-0"]
[TimeControl "15 minutes + 10 seconds per move from move one"]
[WhiteFideId "1746596"]
[BlackFideId "1739069"]
[WhiteElo "1887"]
[BlackElo "1809"]

1. d4 {[%clk 00:15:17]} {[%emt 00:00:01]} Nf6 {[%clk 00:15:13]} {[%emt
00:00:07]} 2. Nf3 {[%clk 00:15:22]} {[%emt 00:00:05]} d5 {[%clk 00:15:20]}
{[%emt 00:00:03]} 3. c4 {[%clk 00:15:29]} {[%emt 00:00:03]} c6 {[%clk
00:15:27]} {[%emt 00:00:03]} 4. cxd5 {[%clk 00:15:35]} {[%emt 00:00:05]} cxd5
{[%clk 00:15:31]} {[%emt 00:00:05]} 5. Nc3 {[%clk 00:15:42]} {[%emt 00:00:03]}
Nc6 {[%clk 00:15:12]} {[%emt 00:00:29]} 6. Bf4 {[%clk 00:15:49]} {[%emt
00:00:03]} g6 {[%clk 00:13:47]} {[%emt 00:01:36]} 7. e3 {[%clk 00:15:14]}
{[%emt 00:00:45]} a6 {[%clk 00:13:43]} {[%emt 00:00:14]} 8. Rc1 {[%clk
00:15:17]} {[%emt 00:00:06]} Bg7 {[%clk 00:13:37]} {[%emt 00:00:16]} 9. Bd3
{[%clk 00:14:14]} {[%emt 00:01:13]} O-O {[%clk 00:13:32]} {[%emt 00:00:16]} 10.
h3 {[%clk 00:14:11]} {[%emt 00:00:12]} Bd7 {[%clk 00:12:27]} {[%emt 00:01:15]}
11. O-O {[%clk 00:14:14]} {[%emt 00:00:07]} Rc8 {[%clk 00:11:51]} {[%emt
00:00:46]} 12. Nd2 {[%clk 00:12:39]} {[%emt 00:01:45]} b5 {[%clk 00:11:35]}
{[%emt 00:00:27]} 13. Nb3 {[%clk 00:11:58]} {[%emt 00:00:51]} Na5 {[%clk
00:09:05]} {[%emt 00:02:39]} 14. Nc5 {[%clk 00:11:12]} {[%emt 00:00:57]} Nc4
{[%clk 00:07:53]} {[%emt 00:01:22]} 15. Qe2 {[%clk 00:10:33]} {[%emt 00:00:49]}
a5 {[%clk 00:06:32]} {[%emt 00:01:31]} 16. b3 {[%clk 00:09:59]} {[%emt
00:00:44]} Na3 {[%clk 00:05:46]} {[%emt 00:00:57]} 17. Nxb5 {[%clk 00:09:34]}
{[%emt 00:00:34]} Nxb5 {[%clk 00:05:33]} {[%emt 00:00:23]} 18. Bxb5 {[%clk
00:09:41]} {[%emt 00:00:03]} Bxb5 {[%clk 00:05:16]} {[%emt 00:00:27]} 19. Qxb5
{[%clk 00:09:47]} {[%emt 00:00:03]} Ra8 {[%clk 00:04:24]} {[%emt 00:01:03]} 20.
Nb7 {[%clk 00:07:23]} {[%emt 00:02:35]} Qe8 {[%clk 00:04:19]} {[%emt 00:00:15]}
21. Qxe8 {[%clk 00:06:19]} {[%emt 00:01:14]} Rfxe8 {[%clk 00:04:26]} {[%emt
00:00:02]} 22. a4 {[%clk 00:05:01]} {[%emt 00:01:29]} Ne4 {[%clk 00:04:13]}
{[%emt 00:00:23]} 23. Rc2 {[%clk 00:04:16]} {[%emt 00:00:54]} e6 {[%clk
00:03:48]} {[%emt 00:00:36]} 24. Rfc1 {[%clk 00:04:13]} {[%emt 00:00:12]} Bf8
{[%clk 00:03:32]} {[%emt 00:00:27]} 25. f3 {[%clk 00:03:43]} {[%emt 00:00:40]}
Nf6 {[%clk 00:03:31]} {[%emt 00:00:11]} 26. Rc7 {[%clk 00:03:25]} {[%emt
00:00:28]} Ba3 {[%clk 00:03:10]} {[%emt 00:00:31]} 27. R1c2 {[%clk 00:03:23]}
{[%emt 00:00:12]} Ra7 {[%clk 00:02:48]} {[%emt 00:00:32]} 28. Bd6 {[%clk
00:03:03]} {[%emt 00:00:29]} Rb8 {[%clk 00:02:38]} {[%emt 00:00:21]} 29. Rc8+
{[%clk 00:02:39]} {[%emt 00:00:34]} 1-0

[Event "Snabb-SM för veteraner, 65+ 2019"]
[Site "Schackcentrum, Vegagatan 20, Gothenburg, Sweden"]
[Date "2019.10.06"]
[Round "11.7"]
[White "Nyberg, Bo"]
[Black "Westerlind, Sture"]
[Result "1-0"]
[TimeControl "15 minutes + 10 seconds per move from move one"]
[WhiteFideId "1710583"]
[BlackFideId "1745654"]
[WhiteElo "1806"]
[BlackElo "1806"]

1. d4 {[%clk 00:15:17]} {[%emt 00:00:02]} Nf6 {[%clk 00:15:18]} {[%emt
00:00:03]} 2. Bf4 {[%clk 00:15:25]} {[%emt 00:00:02]} d6 {[%clk 00:15:04]}
{[%emt 00:00:24]} 3. Nf3 {[%clk 00:15:30]} {[%emt 00:00:04]} b6 {[%clk
00:14:53]} {[%emt 00:00:23]} 4. e3 {[%clk 00:15:32]} {[%emt 00:00:08]} Bb7
{[%clk 00:15:01]} {[%emt 00:00:02]} 5. c3 {[%clk 00:15:32]} {[%emt 00:00:10]}
g6 {[%clk 00:15:04]} {[%emt 00:00:07]} 6. Bd3 {[%clk 00:15:38]} {[%emt
00:00:04]} Bg7 {[%clk 00:15:12]} {[%emt 00:00:02]} 7. O-O {[%clk 00:15:42]}
{[%emt 00:00:05]} O-O {[%clk 00:15:19]} {[%emt 00:00:04]} 8. Nbd2 {[%clk
00:15:47]} {[%emt 00:00:05]} Nbd7 {[%clk 00:15:16]} {[%emt 00:00:13]} 9. e4
{[%clk 00:15:26]} {[%emt 00:00:31]} Re8 {[%clk 00:14:29]} {[%emt 00:00:57]} 10.
e5 {[%clk 00:15:03]} {[%emt 00:00:33]} Nd5 {[%clk 00:14:37]} {[%emt 00:00:02]}
11. Bg3 {[%clk 00:14:38]} {[%emt 00:00:35]} dxe5 {[%clk 00:14:30]} {[%emt
00:00:17]} 12. dxe5 {[%clk 00:14:34]} {[%emt 00:00:14]} e6 {[%clk 00:13:05]}
{[%emt 00:01:35]} 13. Re1 {[%clk 00:14:24]} {[%emt 00:00:19]} c5 {[%clk
00:13:12]} {[%emt 00:00:04]} 14. Bh4 {[%clk 00:13:58]} {[%emt 00:00:35]} Qc7
{[%clk 00:13:05]} {[%emt 00:00:17]} 15. Bb5 {[%clk 00:13:48]} {[%emt 00:00:21]}
Bc6 {[%clk 00:11:30]} {[%emt 00:01:45]} 16. Bxc6 {[%clk 00:13:31]} {[%emt
00:00:27]} Qxc6 {[%clk 00:11:38]} {[%emt 00:00:02]} 17. Nc4 {[%clk 00:11:59]}
{[%emt 00:01:42]} b5 {[%clk 00:11:34]} {[%emt 00:00:15]} 18. Nd6 {[%clk
00:12:03]} {[%emt 00:00:05]} Nxe5 {[%clk 00:09:40]} {[%emt 00:02:04]} 19. Nxe8
{[%clk 00:12:04]} {[%emt 00:00:09]} Nxf3+ {[%clk 00:09:48]} {[%emt 00:00:02]}
20. Qxf3 {[%clk 00:12:10]} {[%emt 00:00:05]} Qxe8 {[%clk 00:09:48]} {[%emt
00:00:10]} 21. Rad1 {[%clk 00:12:06]} {[%emt 00:00:13]} Ne7 {[%clk 00:09:20]}
{[%emt 00:00:39]} 22. Bxe7 {[%clk 00:12:10]} {[%emt 00:00:06]} 1-0